bitfinex/quotes_BTCUSD_20250410
["timestamp","ask_amount","ask_price","bid_price","bid_amount"]
[1744275348248,0.25776664,81509.0,81508.0,0.20090057]
[1744275348792,0.25776664,81509.0,81508.0,0.15450057]
[1744275349167,0.245385,81505.0,81500.0,0.048]
[1744275349375,0.245385,81505.0,81501.0,0.50898882]
[1744275349829,0.245385,81505.0,81502.0,0.02292222]
[1744275350032,0.245389,81503.0,81502.0,0.02292222]
[1744275350432,0.245407,81498.0,81495.0,0.0495686]
[1744275350682,0.245403,81499.0,81496.0,0.28652176]
[1744275350904,0.245407,81497.0,81496.0,0.16596794]
[1744275351106,0.257677,81497.0,81496.0,0.02292794]
[1744275351437,0.257677,81497.0,81496.0,0.16596794]
[1744275352090,0.257677,81497.0,81496.0,0.15451024]
[1744275355148,0.257677,81497.0,81496.0,0.17746685]
[1744275356772,0.257677,81497.0,81496.0,0.03442685]
[1744275357442,0.657677,81497.0,81496.0,0.01147024]
[1744275357762,0.25768,81496.0,81495.0,0.0001686]
[1744275364421,0.65768,81496.0,81495.0,0.0001686]
[1744275365581,1.0713,81496.0,81495.0,0.0001686]
[1744275365755,1.40568641,81496.0,81495.0,0.0001686]
[1744275365979,1.64240931,81496.0,81495.0,0.0001686]
[1744275366179,1.56878931,81496.0,81495.0,0.0001686]
[1744275367425,1.56878931,81496.0,81471.0,0.004]
[1744275367426,0.257738,81478.0,81474.0,0.14288]
[1744275367629,0.4944609,81478.0,81474.0,0.14288]
[1744275368163,0.8944609,81478.0,81474.0,0.14288]
[1744275368771,0.8944609,81478.0,81477.0,0.00059445]
[1744275369345,0.4944609,81478.0,81477.0,0.00059445]
[1744275370613,0.2367229,81478.0,81477.0,0.00059445]
[1744275371171,0.4944609,81478.0,81477.0,0.00059445]
[1744275371470,0.245465,81478.0,81477.0,0.00059445]
[1744275371670,0.257738,81478.0,81477.0,0.00059445]
[1744275372375,0.012273,81478.0,81477.0,0.00059445]
[1744275372709,0.257738,81478.0,81477.0,0.00059445]
[1744275373578,0.245483,81472.0,81471.0,0.00851454]
[1744275373988,0.257763,81470.0,81468.0,0.0001686]
[1744275377378,0.245486,81471.0,81469.0,0.12072242]
[1744275377608,0.490823,81497.0,81470.0,0.0484]
[1744275377609,0.257743,81477.0,81470.0,0.0484]
[1744275377805,0.245486,81471.0,81470.0,0.0484]
[1744275378408,0.25776,81471.0,81470.0,0.0484]
[1744275378721,0.257763,81470.0,81469.0,0.0001686]
[1744275383843,0.012272,81482.0,81474.0,0.245473]
[1744275384045,0.245474,81476.0,81472.0,0.29528]
[1744275384208,0.257731,81480.0,81472.0,0.062074]
[1744275384420,0.24908988,81478.0,81472.0,0.0498]
[1744275384644,0.245477,81475.0,81472.0,0.295283]
[1744275384977,0.245478,81474.0,81473.0,0.14292]
[1744275385115,0.25775,81475.0,81473.0,0.14292]
[1744275385327,0.245477,81474.0,81473.0,0.14292]
[1744275386539,0.23681688,81478.0,81473.0,0.14292]
[1744275386745,0.23681688,81478.0,81474.0,0.36602982]
[1744275386938,0.48228388,81478.0,81475.0,0.245471]
[1744275387239,0.48228388,81478.0,81476.0,0.12055382]
[1744275387240,0.245468,81477.0,81476.0,0.12055382]
[1744275390528,0.257741,81477.0,81476.0,0.15496963]
[1744275390724,0.24556098,81478.0,81476.0,0.15496963]
[1744275390725,9.398e-05,81478.0,81476.0,0.15496963]
[1744275391146,9.398e-05,81478.0,81477.0,0.15496963]
[1744275393502,0.24555898,81478.0,81477.0,0.15496963]
[1744275394704,0.25783198,81478.0,81477.0,0.15496963]
[1744275394904,0.25783198,81478.0,81477.0,0.03441581]
[1744275395973,0.25783198,81478.0,81477.0,0.01147167]
[1744275398738,0.257754,81473.0,81472.0,0.14408]
[1744275399508,0.257754,81473.0,81472.0,0.1670504]
[1744275401271,0.24548,81473.0,81472.0,0.1670504]
[1744275402426,0.257754,81473.0,81472.0,0.1670504]
[1744275402631,0.257754,81473.0,81472.0,0.17853619]
[1744275402992,0.257754,81473.0,81472.0,0.15556579]
[1744275403394,0.257754,81473.0,81472.0,0.14408]
[1744275404426,0.245489,81470.0,81469.0,0.0001686]
[1744275404627,0.245489,81470.0,81469.0,0.26480242]
[1744275405005,0.257761,81471.0,81469.0,0.26480242]
[1744275405681,0.245487,81471.0,81469.0,0.26480242]
[1744275405829,0.245489,81470.0,81469.0,0.26480242]
[1744275406039,0.257763,81470.0,81469.0,0.0001686]
[1744275410801,0.657763,81470.0,81469.0,0.0001686]
[1744275412274,0.8944859,81470.0,81469.0,0.0001686]
[1744275412703,0.4944859,81470.0,81469.0,0.0001686]
[1744275412908,1.00281849,81470.0,81469.0,0.0001686]
[1744275413109,1.40281849,81470.0,81469.0,0.0001686]
[1744275413864,1.2823859,81470.0,81469.0,0.0001686]
[1744275419543,1.2344859,81470.0,81469.0,0.0001686]
[1744275427058,1.2800859,81470.0,81469.0,0.0001686]
[1744275427620,1.2344859,81470.0,81469.0,0.0001686]
[1744275443532,0.8944859,81470.0,81469.0,0.0001686]
[1744275443690,0.4944859,81470.0,81469.0,0.0001686]
[1744275443891,0.4944859,81470.0,81469.0,0.0481686]
[1744275445632,0.4944859,81470.0,81469.0,0.05965657]
[1744275445837,0.4944859,81470.0,81469.0,0.01165657]
[1744275446442,0.8344859,81470.0,81469.0,0.01165657]
[1744275446823,0.8344859,81470.0,81469.0,0.0001686]
[1744275447427,0.91537059,81470.0,81469.0,0.0001686]
[1744275447624,1.31537059,81470.0,81469.0,0.0001686]
[1744275448068,0.245562,81446.0,81443.0,0.245569]
[1744275448263,0.245562,81446.0,81444.0,0.12055382]
[1744275449556,0.245562,81446.0,81444.0,0.12068168]
[1744275450092,0.257835,81448.0,81444.0,0.36624868]
[1744275450291,0.245546,81451.0,81446.0,0.24556]
[1744275450511,0.257823,81451.0,81446.0,0.37839182]
[1744275450803,0.245549,81450.0,81447.0,0.36610882]
[1744275451133,0.245552,81449.0,81447.0,0.12055382]
[1744275452339,0.245549,81451.0,81447.0,0.12055382]
[1744275452530,0.012276,81457.0,81450.0,0.012277]
[1744275452733,0.24554,81454.0,81451.0,0.26511382]
[1744275453159,0.245518,81461.0,81455.0,0.012276]
[1744275453328,0.012275,81461.0,81457.0,0.0493]
[1744275453696,0.245522,81459.0,81458.0,0.12055382]
[1744275454056,0.245521,81460.0,81458.0,0.12055382]
[1744275454567,0.245521,81460.0,81457.0,0.245527]
[1744275454717,0.245521,81460.0,81455.0,0.17319482]
[1744275454921,0.245521,81460.0,81456.0,0.245528]
[1744275455362,0.245522,81459.0,81455.0,0.29374864]
[1744275456253,0.245522,81459.0,81455.0,0.28147264]
[1744275456475,0.245521,81460.0,81456.0,0.24553]
[1744275456758,0.245522,81459.0,81455.0,0.28147264]
[1744275457954,0.245522,81459.0,81454.0,0.257813]
[1744275458144,0.245527,81458.0,81454.0,0.01609151]
[1744275458342,0.245528,81457.0,81454.0,0.01609151]
[1744275458546,0.245534,81455.0,81454.0,0.01609151]
[1744275458703,0.257807,81456.0,81454.0,0.01609151]
[1744275459114,0.245534,81455.0,81454.0,0.01609151]
[1744275461020,0.25781,81455.0,81454.0,0.01609151]
[1744275461803,0.245539,81454.0,81452.0,0.0452]
[1744275462833,0.245535,81455.0,81452.0,0.0452]
[1744275463083,0.245537,81454.0,81452.0,0.0452]
[1744275463255,0.24554,81453.0,81452.0,0.0452]
[1744275463460,0.245537,81454.0,81452.0,0.0452]
[1744275463666,0.24554,81453.0,81452.0,0.0452]
[1744275463981,0.245538,81454.0,81452.0,0.0452]
[1744275464474,0.245538,81454.0,81453.0,0.14444]
[1744275465318,0.245528,81457.0,81453.0,0.14444]
[1744275465498,0.245536,81455.0,81453.0,0.14444]
[1744275465715,0.245501,81466.0,81458.0,0.012276]
[1744275465883,0.245516,81461.0,81457.0,0.245525]
[1744275466088,0.245516,81461.0,81456.0,0.245531]
[1744275466308,0.245519,81460.0,81456.0,0.245531]
[1744275466507,0.245516,81461.0,81456.0,0.245531]
[1744275466716,0.245519,81460.0,81456.0,0.245531]
[1744275466859,0.245519,81460.0,81457.0,0.14444]
[1744275467060,0.245524,81459.0,81457.0,0.14444]
[1744275467371,0.257801,81458.0,81457.0,0.14444]
[1744275468395,0.257826,81451.0,81447.0,0.0483]
[1744275468615,0.257826,81450.0,81447.0,0.0483]
[1744275468879,0.245549,81450.0,81447.0,0.0483]
[1744275469632,0.245547,81451.0,81447.0,0.293856]
[1744275470050,0.245554,81449.0,81447.0,0.0483]
[1744275470217,0.245547,81451.0,81447.0,0.293856]
[1744275470857,0.245543,81452.0,81448.0,0.245553]
[1744275472035,0.245547,81451.0,81447.0,0.293856]
[1744275472779,0.257816,81454.0,81447.0,0.306132]
[1744275473058,0.245541,81453.0,81449.0,0.245549]
[1744275473262,0.257812,81455.0,81449.0,0.012277]
[1744275473438,0.24554,81453.0,81449.0,0.257827]
[1744275473645,0.245538,81454.0,81449.0,0.257828]
[1744275473850,0.245528,81457.0,81449.0,0.257828]
[1744275474047,0.245518,81461.0,81456.0,0.245528]
[1744275474208,0.245519,81460.0,81456.0,0.245531]
[1744275474620,0.012275,81464.0,81459.0,0.245519]
[1744275474792,0.245518,81462.0,81457.0,0.27999645]
[1744275475018,0.245518,81461.0,81457.0,0.27999645]
[1744275475304,0.245519,81460.0,81458.0,0.02298098]
[1744275475505,0.245519,81460.0,81458.0,0.03447145]
[1744275475705,0.245519,81460.0,81459.0,0.02298098]
[1744275476317,0.245519,81460.0,81459.0,0.03447145]
[1744275476515,0.3609088,81460.0,81459.0,0.03447145]
[1744275476716,0.303694,81460.0,81459.0,0.03447145]
[1744275477037,0.303694,81460.0,81459.0,0.01149047]
[1744275477601,0.245561,81446.0,81445.0,0.02298098]
[1744275477802,0.257839,81446.0,81445.0,0.02298098]
[1744275478399,0.27277617,81446.0,81445.0,0.02298098]
[1744275479311,0.27277617,81446.0,81440.0,0.0461]
[1744275479312,0.257842,81445.0,81440.0,0.0461]
[1744275480105,0.257842,81445.0,81436.0,0.0001686]
[1744275480106,0.597842,81445.0,81436.0,0.0001686]
[1744275493089,0.257842,81445.0,81443.0,0.0459]
[1744275493292,0.25782,81452.0,81443.0,0.058178]
[1744275493492,0.245555,81449.0,81445.0,0.12055382]
[1744275494135,0.245555,81449.0,81446.0,0.388919]
[1744275494338,0.245555,81449.0,81446.0,0.50947282]
[1744275494519,0.012276,81457.0,81450.0,0.257824]
[1744275494748,0.012276,81457.0,81447.0,0.13509467]
[1744275494749,0.012276,81455.0,81451.0,0.13509467]
[1744275494948,0.012277,81453.0,81451.0,0.13509467]
[1744275495144,0.25782,81452.0,81451.0,0.13509467]
[1744275495353,0.245543,81452.0,81451.0,0.13509467]
[1744275495558,0.257817,81453.0,81450.0,0.245546]
[1744275495895,0.257817,81453.0,81451.0,0.14336]
[1744275496331,0.245543,81452.0,81448.0,0.012277]
[1744275496548,0.012277,81452.0,81449.0,0.36610482]
[1744275496705,0.245549,81452.0,81449.0,0.36610482]
[1744275496907,0.01395551,81454.0,81452.0,0.245543]
[1744275497113,0.01395551,81454.0,81451.0,0.012277]
[1744275497114,0.012275,81460.0,81453.0,0.36609382]
[1744275497331,0.245525,81458.0,81455.0,0.245534]
[1744275497738,0.245525,81458.0,81456.0,0.14332]
[1744275497739,0.245528,81457.0,81456.0,0.14332]
[1744275497961,0.257804,81457.0,81456.0,0.14332]
[1744275498686,0.2716984,81457.0,81456.0,0.14332]
[1744275499289,0.2716984,81457.0,81454.0,0.245536]
[1744275500567,0.245537,81454.0,81451.0,0.257823]
[1744275501679,0.245537,81455.0,81438.0,0.32128611]
[1744275501680,0.245552,81451.0,81443.0,0.058178]
[1744275501880,0.245549,81450.0,81447.0,0.245555]
[1744275502177,0.24555,81450.0,81447.0,0.245555]
[1744275502530,0.24555,81450.0,81448.0,0.14332]
[1744275502750,0.245546,81451.0,81448.0,0.388873]
[1744275503254,0.01391146,81457.0,81454.0,0.012276]
[1744275503459,0.245521,81460.0,81456.0,0.26007185]
[1744275503640,0.245512,81463.0,81460.0,0.245519]
[1744275504079,0.01428094,81463.0,81459.0,0.245522]
[1744275504388,0.245513,81462.0,81459.0,0.245522]
[1744275504714,0.245512,81463.0,81460.0,0.245519]
[1744275504867,0.2455,81467.0,81459.0,0.245522]
[1744275504868,0.01419994,81468.0,81463.0,0.012275]
[1744275505081,0.01419994,81468.0,81465.0,0.245502]
[1744275505082,0.245497,81468.0,81465.0,0.245502]
[1744275505385,0.245498,81467.0,81464.0,0.50937482]
[1744275506099,0.245497,81468.0,81465.0,0.245504]
[1744275506254,0.245499,81467.0,81464.0,0.50937482]
[1744275506686,0.245504,81465.0,81464.0,0.26387382]
[1744275506843,0.245502,81466.0,81464.0,0.26387382]
[1744275507039,0.245504,81465.0,81464.0,0.26387382]
[1744275507293,0.257777,81466.0,81464.0,0.26387382]
[1744275507493,0.245502,81466.0,81464.0,0.26387382]
[1744275508145,0.257777,81467.0,81464.0,0.50937982]
[1744275509097,0.245504,81465.0,81464.0,0.14332]
[1744275509316,0.257779,81465.0,81464.0,0.14332]
[1744275511457,0.257779,81465.0,81461.0,0.245513]
[1744275512485,0.245507,81464.0,81461.0,0.245515]
[1744275512720,0.257777,81466.0,81462.0,0.14332]
[1744275512916,0.245504,81465.0,81463.0,0.245508]
[1744275513214,0.259848,81468.0,81464.0,0.257781]
[1744275513458,0.245498,81467.0,81464.0,0.257781]
[1744275513652,0.245501,81466.0,81463.0,0.245504]
[1744275513828,0.014352,81468.0,81467.0,0.245498]
[1744275514033,0.014352,81468.0,81466.0,0.245501]
[1744275514358,0.245493,81469.0,81465.0,0.257778]
[1744275514581,0.245495,81468.0,81464.0,0.36606082]
[1744275515870,0.245495,81468.0,81465.0,0.245503]
[1744275516556,0.2455,81467.0,81464.0,0.36606082]
[1744275516762,0.257766,81469.0,81463.0,0.01454085]
[1744275516763,0.245504,81465.0,81463.0,0.01454085]
[1744275516980,0.245507,81464.0,81462.0,0.14332]
[1744275517595,0.245507,81464.0,81462.0,0.388832]
[1744275517796,0.257776,81466.0,81462.0,0.388832]
[1744275518091,0.245505,81465.0,81462.0,0.388832]
[1744275518952,0.245498,81467.0,81463.0,0.24551]
[1744275519151,0.257772,81467.0,81463.0,0.24551]
[1744275519375,0.245502,81466.0,81463.0,0.24551]
[1744275519571,0.245492,81469.0,81465.0,0.245504]
[1744275519793,0.245496,81468.0,81466.0,0.245501]
[1744275519970,0.245496,81468.0,81465.0,0.245503]
[1744275520188,0.245489,81470.0,81465.0,0.257778]
[1744275520367,0.34,81476.0,81471.0,0.012274]
[1744275520566,0.34,81476.0,81473.0,0.245479]
[1744275520896,0.24548,81473.0,81470.0,0.245489]
[1744275521086,0.245474,81475.0,81472.0,0.24548]
[1744275521331,0.597744,81476.0,81472.0,0.24548]
[1744275521464,0.245477,81474.0,81472.0,0.24548]
[1744275521671,0.245477,81474.0,81472.0,0.00012786]
[1744275522470,0.34,81477.0,81472.0,0.24560986]
[1744275522693,0.245465,81478.0,81472.0,0.24560986]
[1744275522694,0.257738,81478.0,81473.0,0.012274]
[1744275522896,0.24547,81477.0,81473.0,0.012274]
[1744275523099,0.245471,81476.0,81473.0,0.012274]
[1744275523658,0.245471,81476.0,81473.0,0.257754]
[1744275525378,0.257738,81478.0,81475.0,0.245474]
[1744275525679,0.27168568,81478.0,81476.0,0.14228]
[1744275526098,0.245468,81477.0,81476.0,0.14228]
[1744275527061,0.01394768,81478.0,81476.0,0.14228]
[1744275527261,0.245466,81478.0,81476.0,0.14228]
[1744275527519,0.245468,81477.0,81476.0,0.14228]
[1744275527752,0.257741,81477.0,81476.0,0.14228]
[1744275528481,0.0003372,81488.0,81486.0,0.257712]
[1744275528687,0.0003372,81488.0,81486.0,0.39280667]
[1744275530406,0.0003372,81488.0,81486.0,0.53504667]
[1744275542955,0.0003372,81488.0,81486.0,0.52050582]
[1744275543277,0.0003372,81488.0,81486.0,0.53504667]
[1744275551080,0.0003372,81488.0,81486.0,0.39280667]
[1744275551258,0.0003372,81488.0,81486.0,0.53472667]
[1744275554588,0.0003372,81488.0,81486.0,0.57992667]
[1744275557193,0.0003372,81488.0,81486.0,0.53472667]
[1744275557408,0.0003372,81488.0,81486.0,0.39280667]
[1744275557589,0.0003372,81488.0,81486.0,0.53472667]
[1744275559632,0.0003372,81488.0,81486.0,0.55770041]
[1744275560044,0.0003372,81488.0,81486.0,0.60340041]
[1744275564720,0.0003372,81488.0,81486.0,0.58042667]
[1744275565769,0.0003372,81488.0,81486.0,0.61870802]
[1744275566751,0.0003372,81488.0,81486.0,0.58042667]
[1744275570240,0.0003372,81488.0,81486.0,0.53472667]
[1744275570979,0.0003372,81488.0,81486.0,0.58442667]
[1744275571178,0.0003372,81488.0,81486.0,0.62269565]
[1744275574659,0.0003372,81488.0,81486.0,0.48077565]
[1744275574863,0.0003372,81488.0,81486.0,0.62269565]
[1744275575809,0.0003372,81488.0,81486.0,0.58442667]
[1744275576991,0.0003372,81488.0,81486.0,0.57007367]
[1744275578129,0.0003372,81488.0,81486.0,0.52037367]
[1744275580004,0.0003372,81488.0,81486.0,1.78301367]
[1744275584546,0.0003372,81488.0,81486.0,1.78329367]
[1744275586936,0.0003372,81488.0,81486.0,1.82156184]
[1744275588099,0.0003372,81488.0,81486.0,1.78329367]
[1744275589115,0.0003372,81488.0,81486.0,1.82157422]
[1744275589314,0.0003372,81488.0,81486.0,1.78329367]
[1744275589719,0.0003372,81488.0,81486.0,1.80626625]
[1744275590106,0.0003372,81488.0,81486.0,1.81775268]
[1744275592563,0.2580452,81487.0,81486.0,1.43929901]
[1744275592747,0.3401742,81487.0,81486.0,1.43929901]
[1744275593144,0.0947372,81487.0,81486.0,1.43929901]
[1744275593946,0.3401742,81487.0,81486.0,1.41632643]
[1744275594758,0.3401742,81487.0,81486.0,1.27412643]
[1744275594960,0.3524452,81487.0,81486.0,1.41632643]
[1744275595185,0.0947372,81487.0,81486.0,1.53183843]
[1744275595366,0.0476372,81487.0,81486.0,1.67403843]
[1744275596083,0.0476372,81487.0,81486.0,1.69699941]
[1744275597729,0.0476372,81487.0,81486.0,1.67403843]
[1744275597926,0.0476372,81487.0,81486.0,1.8091331]
[1744275598126,0.0003372,81487.0,81486.0,1.8091331]
[1744275601382,0.0003372,81487.0,81486.0,1.79764667]
[1744275601822,0.3078452,81487.0,81486.0,1.40484]
[1744275601978,0.3547452,81487.0,81486.0,1.40484]
[1744275603222,0.3424742,81487.0,81486.0,1.40484]
[1744275603429,0.0472372,81487.0,81486.0,1.40484]
[1744275603638,0.0472372,81487.0,81486.0,1.65028]
[1744275604060,0.0472372,81487.0,81486.0,1.67709285]
[1744275604240,0.0003372,81487.0,81486.0,1.79764667]
[1744275605040,0.0003372,81487.0,81486.0,1.82059321]
[1744275606880,0.0003372,81487.0,81486.0,0.55795321]
[1744275607081,0.0003372,81487.0,81486.0,0.02294654]
[1744275607082,0.2580452,81487.0,81486.0,0.02294654]
[1744275607286,0.3056452,81487.0,81486.0,0.02294654]
[1744275607482,0.3056452,81487.0,81486.0,0.16518654]
[1744275607822,0.3547452,81487.0,81486.0,0.16518654]
[1744275608125,0.3547452,81487.0,81486.0,0.14224]
[1744275609988,0.257754,81473.0,81472.0,0.00012786]
[1744275610192,0.257754,81473.0,81472.0,0.14236786]
[1744275610428,0.353854,81473.0,81472.0,0.14236786]
[1744275612330,0.304754,81473.0,81472.0,0.14236786]
[1744275612559,0.047,81473.0,81472.0,0.15464186]
[1744275612675,0.012273,81479.0,81474.0,0.245471]
[1744275612875,0.245467,81478.0,81476.0,0.24547]
[1744275613071,0.245467,81478.0,81475.0,0.245474]
[1744275613520,0.245471,81476.0,81472.0,0.15464186]
[1744275613838,0.257743,81477.0,81473.0,0.245478]
[1744275614229,0.245472,81476.0,81473.0,0.245478]
[1744275614424,0.245477,81474.0,81472.0,0.38784986]
[1744275614755,0.245475,81475.0,81472.0,0.38784986]
[1744275614968,0.257749,81476.0,81472.0,0.38784986]
[1744275615191,0.245476,81475.0,81472.0,0.38784986]
[1744275615410,0.245477,81474.0,81472.0,0.14236786]
[1744275616052,0.257749,81475.0,81472.0,0.14236786]
[1744275616262,0.012273,81476.0,81472.0,0.14236786]
[1744275617100,0.24548,81473.0,81472.0,0.14236786]
[1744275617922,0.245477,81474.0,81472.0,0.16528583]
[1744275618541,0.01361925,81479.0,81476.0,0.245469]
[1744275618813,0.245464,81480.0,81476.0,0.245469]
[1744275619052,0.0126082,81487.0,81481.0,0.012272]
[1744275619313,0.245447,81484.0,81482.0,0.245452]
[1744275619571,0.0003372,81487.0,81486.0,0.24544]
[1744275619800,0.0003372,81487.0,81486.0,0.257712]
[1744275620037,0.0003372,81487.0,81486.0,0.28062997]
[1744275620529,0.0003372,81487.0,81486.0,0.41572464]
[1744275622556,0.0003372,81487.0,81486.0,0.85102464]
[1744275623033,0.0003372,81487.0,81486.0,0.88921796]
[1744275623532,0.000337,81491.0,81486.0,0.88921796]
[1744275623533,4e-07,81491.0,81490.0,0.40506885]
[1744275623781,4e-07,81491.0,81490.0,2.28317367]
[1744275624013,4e-07,81491.0,81490.0,2.32135615]
[1744275624272,4e-07,81491.0,81490.0,2.35572805]
[1744275624526,4e-07,81491.0,81490.0,2.36072805]
[1744275624714,4e-07,81491.0,81490.0,2.36996258]
[1744275625233,0.004,81499.0,81498.0,0.602674]
[1744275625489,0.004,81499.0,81498.0,0.83736867]
[1744275625732,0.004,81499.0,81498.0,0.87555115]
[1744275625932,0.004,81499.0,81498.0,0.84846912]
[1744275626271,0.004,81499.0,81498.0,0.85992305]
[1744275626476,0.00442569,81499.0,81498.0,1.00228305]
[1744275627293,0.00442569,81499.0,81498.0,0.95264664]
[1744275631611,0.00442569,81499.0,81498.0,0.94764664]
[1744275641608,0.00442569,81499.0,81498.0,0.80528664]
[1744275641969,0.00442569,81499.0,81498.0,0.94800664]
[1744275642520,0.00424164,81499.0,81498.0,0.94800664]
[1744275642720,0.00424164,81499.0,81498.0,0.80528664]
[1744275642924,0.00424164,81499.0,81498.0,0.54386579]
[1744275643327,0.00424164,81499.0,81498.0,0.88386579]
[1744275643626,0.00424164,81499.0,81498.0,0.89840664]
[1744275643826,0.00424164,81499.0,81498.0,0.88386579]
[1744275644706,0.00420078,81499.0,81498.0,0.89840664]
[1744275645640,0.00420078,81499.0,81498.0,0.55840664]
[1744275645863,0.05230078,81499.0,81498.0,0.55840664]
[1744275647999,0.00420078,81499.0,81498.0,0.55840664]
[1744275650283,0.00420078,81499.0,81498.0,0.94740664]
[1744275650847,0.00420078,81499.0,81498.0,0.95886235]
[1744275653633,0.00420078,81499.0,81498.0,2.22126235]
[1744275654848,0.00420078,81499.0,81498.0,2.25943638]
[1744275655725,0.00420078,81499.0,81498.0,2.24798067]
[1744275657496,0.00420078,81499.0,81498.0,2.21045024]
[1744275658687,0.00420078,81499.0,81498.0,2.19898067]
[1744275659253,0.00420078,81499.0,81498.0,2.24858067]
[1744275660630,0.00420078,81499.0,81498.0,2.21045189]
[1744275661833,0.00420078,81499.0,81498.0,2.19898067]
[1744275663648,0.00021238,81511.0,81510.0,0.257636]
[1744275663898,0.00030117,81511.0,81510.0,0.39273067]
[1744275664076,0.00030117,81511.0,81510.0,0.41564864]
[1744275673531,0.00030117,81511.0,81510.0,0.17028064]
[1744275673726,0.00030117,81511.0,81510.0,0.55896864]
[1744275677705,0.00030117,81511.0,81510.0,1.82124864]
[1744275678913,0.00030117,81511.0,81510.0,1.85949927]
[1744275690061,0.00030117,81511.0,81510.0,1.8365813]
[1744275690648,0.00030117,81511.0,81510.0,1.56440445]
[1744275690850,0.29296617,81511.0,81510.0,1.4056]
[1744275692096,0.04760117,81511.0,81510.0,1.4056]
[1744275693338,0.30523417,81511.0,81510.0,1.4056]
[1744275693541,0.35033417,81511.0,81510.0,1.4056]
[1744275693954,0.35033417,81511.0,81510.0,1.26228]
[1744275695191,0.35033417,81511.0,81510.0,1.21228]
[1744275695406,0.349145,81507.0,81506.0,0.14332]
[1744275706060,0.245413,81496.0,81492.0,0.24542]
[1744275706283,0.245413,81496.0,81493.0,0.14336]
[1744275706870,0.245416,81494.0,81493.0,0.14336]
[1744275707829,0.257686,81494.0,81493.0,0.14336]
[1744275708035,0.306486,81494.0,81493.0,0.14336]
[1744275708171,0.245436,81488.0,81486.0,0.1]
[1744275708371,0.245436,81488.0,81487.0,0.14336]
[1744275708804,0.245432,81489.0,81487.0,0.14336]
[1744275709352,0.245434,81488.0,81487.0,0.14336]
[1744275709479,0.257705,81488.0,81487.0,0.14336]
[1744275711398,0.245434,81488.0,81487.0,0.14336]
[1744275711573,0.257705,81488.0,81487.0,0.14336]
[1744275714098,0.257705,81488.0,81477.0,0.0001685]
[1744275714099,0.012273,81478.0,81477.0,0.0001685]
[1744275714301,0.352538,81478.0,81477.0,0.0001685]
[1744275714511,1.04981472,81478.0,81477.0,0.0001685]
[1744275714715,1.44981472,81478.0,81477.0,0.0001685]
[1744275714962,0.597776,81466.0,81460.0,0.1435285]
[1744275715266,1.04895272,81466.0,81460.0,0.0001685]
[1744275715725,1.04895272,81466.0,81465.0,0.00059419]
[1744275716767,1.44895272,81466.0,81465.0,0.00059419]
[1744275720595,0.597791,81461.0,81460.0,6.9e-07]
[1744275720918,1.00036772,81461.0,81460.0,0.00012855]
[1744275721356,1.40036772,81461.0,81460.0,0.00012855]
[1744275724447,1.40966239,81461.0,81460.0,0.00012855]
[1744275725255,1.45536239,81461.0,81460.0,5.5e-07]
[1744275726263,0.69271,81455.0,81454.0,0.0001685]
[1744275726619,0.81326382,81455.0,81454.0,0.0001685]
[1744275727172,1.21326382,81455.0,81454.0,0.0001685]
[1744275727581,1.22661563,81455.0,81454.0,0.0001685]
[1744275728667,1.46333853,81455.0,81454.0,5e-07]
[1744275729969,0.597851,81442.0,81435.0,0.14344]
[1744275730186,0.8345739,81442.0,81435.0,0.14344]
[1744275730761,1.2345739,81442.0,81435.0,0.14344]
[1744275733117,1.49703396,81442.0,81428.0,0.0001685]
[1744275733567,0.597857,81440.0,81439.0,5e-07]
[1744275733772,0.71841082,81440.0,81439.0,5e-07]
[1744275734439,1.11841082,81440.0,81439.0,5e-07]
[1744275734770,1.23884341,81440.0,81439.0,5e-07]
[1744275734951,1.47556631,81440.0,81439.0,5e-07]
[1744275735163,0.597867,81437.0,81436.0,1e-07]
[1744275735390,0.71842082,81437.0,81436.0,1e-07]
[1744275736860,0.72771194,81437.0,81436.0,1e-07]
[1744275738875,1.12771194,81437.0,81436.0,1e-07]
[1744275740535,1.15033732,81437.0,81436.0,1e-07]
[1744275740765,1.38706022,81437.0,81436.0,1e-07]
[1744275740937,1.50749281,81437.0,81436.0,1e-07]
[1744275741141,1.60049281,81437.0,81436.0,1e-07]
[1744275741702,1.57786743,81437.0,81436.0,1e-07]
[1744275742110,1.65655743,81437.0,81436.0,1e-07]
[1744275742540,0.257892,81429.0,81428.0,6e-07]
[1744275742765,0.59083762,81428.0,81427.0,4e-07]
[1744275742942,0.99691434,81428.0,81427.0,4e-07]
[1744275743356,1.41959176,81428.0,81427.0,4e-07]
[1744275744447,1.41959176,81428.0,81422.0,0.02]
[1744275744448,0.644847,81412.0,81393.0,0.14348]
[1744275744645,1.00212372,81412.0,81411.0,0.00412038]
[1744275744853,1.02480114,81412.0,81411.0,0.00412038]
[1744275745221,0.85734732,81412.0,81411.0,0.00412038]
[1744275746282,0.93103732,81412.0,81411.0,0.00412038]
[1744275746509,0.87034938,81412.0,81411.0,0.00412038]
[1744275746699,0.9909032,81412.0,81411.0,0.00412038]
[1744275746928,1.27034938,81412.0,81411.0,0.00412038]
[1744275747130,1.24767196,81412.0,81411.0,0.00412038]
[1744275747432,1.2568919,81412.0,81411.0,0.00412038]
[1744275747590,1.38879245,81412.0,81411.0,0.00412038]
[1744275748871,1.26823863,81412.0,81411.0,0.00412038]
[1744275749593,1.2568919,81412.0,81411.0,0.00412038]
[1744275751296,1.26823516,81412.0,81411.0,0.00412038]
[1744275753525,1.38878898,81412.0,81411.0,0.00412038]
[1744275756368,1.46247898,81412.0,81411.0,0.00412038]
[1744275757223,1.38878898,81412.0,81411.0,0.00412038]
[1744275757587,1.37744572,81412.0,81411.0,0.00412038]
[1744275758503,1.2568919,81412.0,81411.0,0.00412038]
[1744275758707,1.24767196,81412.0,81411.0,0.00412038]
[1744275758910,0.84767196,81412.0,81411.0,0.00412038]
[1744275759330,0.24972496,81412.0,81411.0,0.00412038]
[1744275759530,0.50767196,81412.0,81411.0,0.00412038]
[1744275761214,0.01300206,81412.0,81411.0,0.00412038]
[1744275761411,0.257947,81412.0,81411.0,0.00412038]
[1744275762517,0.27130563,81412.0,81411.0,0.00412038]
[1744275763222,0.61130563,81412.0,81411.0,0.00412038]
[1744275763781,1.01130563,81412.0,81411.0,0.00412038]
[1744275766315,1.13185945,81412.0,81411.0,0.00412038]